fUSD/lending_fUSD_20260425
["ID","MTS","AMOUNT","RATE_DAILY","PERIOD"]
[421108087,1777051862209,-2000.0,0.00018082,2]
[421108088,1777051862220,-2000.0,0.00018082,2]
[421108089,1777051862233,-1583.77859042,0.00018082,2]
[421108090,1777051862244,-2001.61103317,0.00018082,2]
[421108091,1777051862254,-2000.30105511,0.00018082,2]
[421108092,1777051862264,-1615.68290955,0.00018082,2]
[421108093,1777051862274,-2000.0,0.00018082,2]
[421108094,1777051862286,-2000.0,0.00018082,2]
[421108095,1777051862296,-1196.04567757,0.00018082,2]
[421108096,1777051862306,-2000.0,0.00018082,2]
[421108097,1777051862317,-500.0,0.00018092,2]
[421108098,1777051862327,-9246.0,0.00018099,2]
[421108099,1777051862338,-1794.96337515,0.000181,2]
[421108100,1777051862349,-503.0,0.00018183,6]
[421108101,1777051862359,-654.35381891,0.00018207,7]
[421108102,1777051862369,-6154.5,0.00018356,2]
[421108103,1777051862380,-259.35,0.00018358,2]
[421108104,1777051862390,-2475.0,0.00018367,2]
[421108105,1777051862401,-1000.0,0.00018425,7]
[421108106,1777051862411,-927.0,0.00018438,2]
[421108107,1777051862421,-1219.0,0.00018438,2]
[421108108,1777051862430,-6032.0,0.00018438,2]
[421108109,1777051862440,-1048.0,0.00018438,2]
[421108110,1777051862450,-151.0,0.00018441,2]
[421108111,1777051862461,-151.0,0.00018441,2]
[421108112,1777051862471,-151.0,0.00018441,2]
[421108113,1777051862481,-151.0,0.00018441,2]
[421108114,1777051862491,-151.0,0.00018441,2]
[421108115,1777051862501,-151.0,0.00018441,2]
[421108116,1777051862511,-151.0,0.00018442,2]
[421108117,1777051862521,-151.17,0.00018442,2]
[421108118,1777051862531,-151.0,0.00018442,2]
[421108119,1777051862540,-151.0,0.00018442,2]
[421108120,1777051862550,-151.0,0.00018442,2]
[421108121,1777051862560,-151.0,0.00018442,2]
[421108122,1777051862570,-151.0,0.00018442,2]
[421108123,1777051862580,-151.0,0.00018442,2]
[421108124,1777051862590,-151.0,0.00018442,2]
[421108125,1777051862599,-151.0,0.00018442,2]
[421108126,1777051862609,-151.0,0.00018442,2]
[421108127,1777051862619,-151.0,0.00018442,2]
[421108128,1777051862630,-150.0,0.00018443,2]
[421108129,1777051862640,-270.15,0.00018447,2]
[421108130,1777051862651,-151.0,0.00018447,2]
[421108131,1777051862661,-151.0,0.00018447,2]
[421108132,1777051862671,-151.0,0.00018447,2]
[421108133,1777051862682,-151.0,0.00018447,2]
[421108134,1777051862692,-151.0,0.00018447,2]
[421108135,1777051862701,-151.0,0.00018447,2]
[421108136,1777051862711,-151.0,0.00018447,2]
[421108137,1777051862721,-1117.0,0.00018513,2]
[421108138,1777051862731,-654.35381891,0.00018548,7]
[421108139,1777051862741,-158.0,0.00018568,3]
[421108140,1777051862752,-6154.5,0.0001863,2]
[421108141,1777051862762,-1542.10986995,0.0001863,2]
[421108142,1777051862772,-1029.29982655,0.0001863,2]
[421108143,1777051862782,-706.46078675,0.0001863,2]
[421108144,1777051862792,-1703.85748369,0.0001863,2]
[421108145,1777051862802,-659.99218482,0.0001863,2]
[421108146,1777051862812,-2017.07299548,0.0001863,2]
[421108147,1777051862822,-2120.40037975,0.0001863,2]
[421108148,1777051862832,-2221.00173662,0.0001863,2]
[421108149,1777051862842,-2500.0,0.0001863,2]
[421108150,1777051862852,-848.06141742,0.0001863,2]
[421108151,1777051862862,-360.38182157,0.0001863,2]
[421108152,1777051862873,-152.0,0.00018723,3]
[421108153,1777051862884,-150.0,0.00018822,2]
[421108154,1777051862893,-654.35381891,0.00018889,7]
[421108155,1777051862904,-1000.06,0.00018904,2]
[421108156,1777051862913,-6154.5,0.00018904,2]
[421108157,1777051862923,-400.0,0.00019,2]
[421108158,1777051862933,-362.69638282,0.0001901,7]
[421108159,1777051862943,-8888.0,0.00019056,2]
[421108160,1777051862953,-503.0,0.0001912,6]
[421108161,1777051862963,-500.0,0.00019144,2]
[421108162,1777051862973,-500.0,0.00019176,2]
[421108163,1777051862983,-433.31324301,0.00019178,2]
[421108164,1777051862993,-6154.5,0.00019178,2]
[421108165,1777051863004,-500.0,0.00019178,30]
[421108166,1777051863014,-500.0,0.00019178,30]
[421108167,1777051863023,-500.0,0.00019178,30]
[421108168,1777051863034,-500.26376587,0.00019178,30]
[421108169,1777051863043,-250.0,0.00019178,2]
[421108170,1777051863053,-250.0,0.00019178,2]
[421108171,1777051863063,-250.0,0.00019178,2]
[421108172,1777051863073,-258.31293885,0.00019178,2]
[421108173,1777051863083,-500.0,0.00019178,2]
[421108174,1777051863094,-500.0,0.00019178,2]
[421108175,1777051863104,-500.0,0.00019178,2]
[421108176,1777051863115,-500.0,0.00019178,2]
[421108177,1777051863126,-500.0,0.00019178,2]
[421108178,1777051863137,-500.0,0.00019178,2]
[421108179,1777051863147,-500.0,0.00019178,2]
[421108180,1777051863157,-500.0,0.00019178,2]
[421108181,1777051863167,-500.0,0.00019178,2]
[421108182,1777051863177,-454.93809321,0.00019178,2]
[421108183,1777051863187,-292.5,0.00019178,2]
[421108184,1777051863197,-244.412133,0.00019178,2]
[421108185,1777051863207,-244.412133,0.00019178,2]
[421108186,1777051863217,-244.412133,0.00019178,2]
[421108187,1777051863227,-244.412133,0.00019178,2]
[421108188,1777051863236,-244.412133,0.00019178,2]
[421108189,1777051863246,-244.412133,0.00019178,2]
[421108190,1777051863256,-244.412133,0.00019178,2]
[421108191,1777051863266,-244.412133,0.00019178,2]
[421108192,1777051863276,-244.412133,0.00019178,2]
[421108193,1777051863287,-244.412133,0.00019178,2]
[421108194,1777051863297,-244.412133,0.00019178,2]
[421108195,1777051863307,-244.412133,0.00019178,2]
[421108196,1777051863317,-244.412133,0.00019178,2]
[421108197,1777051863328,-244.412133,0.00019178,2]
[421108198,1777051863339,-244.412133,0.00019178,2]
[421108199,1777051863350,-244.412133,0.00019178,2]
[421108200,1777051863360,-244.412133,0.00019178,2]
[421108201,1777051863370,-244.412133,0.00019178,2]
[421108202,1777051863380,-244.412133,0.00019178,2]
[421108203,1777051863391,-244.412131,0.00019178,2]
[421108204,1777051863401,-151.0,0.00019178,3]
[421108205,1777051863411,-264.044531,0.00019178,3]
[421108206,1777051863423,-869.495192,0.00019178,2]
[421108207,1777051863434,-869.495192,0.00019178,2]
[421108208,1777051863445,-869.495192,0.00019178,2]
[421108209,1777051863456,-869.495192,0.00019178,2]
[421108210,1777051863466,-869.495192,0.00019178,2]
[421108211,1777051863477,-869.495192,0.00019178,2]
[421108212,1777051863487,-869.495192,0.00019178,2]
[421108213,1777051863497,-869.495192,0.00019178,2]
[421108214,1777051863507,-869.495192,0.00019178,2]
[421108215,1777051863517,-869.495192,0.00019178,2]
[421108216,1777051863528,-869.495192,0.00019178,2]
[421108217,1777051863538,-869.495192,0.00019178,2]
[421108218,1777051863548,-869.495192,0.00019178,2]
[421108219,1777051863559,-869.495192,0.00019178,2]
[421108220,1777051863568,-869.495192,0.00019178,2]
[421108221,1777051863579,-869.495192,0.00019178,2]
[421108222,1777051863589,-869.495192,0.00019178,2]
[421108223,1777051863599,-869.495192,0.00019178,2]
[421108224,1777051863609,-869.495192,0.00019178,2]
[421108225,1777051863618,-869.495194,0.00019178,2]
[421108226,1777051863629,-315.842369,0.00019178,2]
[421108227,1777051863639,-315.842369,0.00019178,2]
[421108228,1777051863650,-315.842369,0.00019178,2]
[421108229,1777051863660,-315.842369,0.00019178,2]
[421108230,1777051863670,-315.842369,0.00019178,2]
[421108231,1777051863681,-315.842369,0.00019178,2]
[421108232,1777051863691,-315.842369,0.00019178,2]
[421108233,1777051863702,-315.842369,0.00019178,2]
[421108234,1777051863711,-315.842369,0.00019178,2]
[421108235,1777051863722,-315.842369,0.00019178,2]
[421108236,1777051863732,-315.842369,0.00019178,2]
[421108237,1777051863743,-315.842369,0.00019178,2]
[421108238,1777051863753,-315.842369,0.00019178,2]
[421108239,1777051863764,-315.842369,0.00019178,2]
[421108240,1777051863774,-315.842369,0.00019178,2]
[421108241,1777051863784,-315.842369,0.00019178,2]
[421108242,1777051863794,-315.842369,0.00019178,2]
[421108243,1777051863804,-315.842369,0.00019178,2]
[421108244,1777051863814,-315.842369,0.00019178,2]
[421108245,1777051863824,-315.842364,0.00019178,2]
[421108246,1777051863835,-150.0,0.00019178,2]
[421108247,1777051863844,-150.0,0.00019178,2]
[421108248,1777051863855,-661.3034534,0.00019178,2]
[421108249,1777051863866,-152.0,0.00019196,4]
[421108250,1777051863876,-400.13,0.000192,2]
[421108251,1777051863887,-654.35381891,0.0001923,7]
[421108252,1777051863897,-158.0,0.00019255,3]
[421108253,1777051863907,-173.8379679,0.00019259,7]
[421108254,1777051863917,-151.0,0.00019262,2]
[421108255,1777051863927,-151.0,0.00019264,2]
[421108256,1777051863936,-151.0,0.00019264,2]
[421108257,1777051863946,-151.0,0.00019269,2]
[421108258,1777051863957,-397.25,0.00019281,2]
[421108259,1777051863968,-151.37083064,0.00019333,7]
[421108260,1777051863978,-6708.65,0.00019339,2]
[421108261,1777051863988,-29999.99,0.00019339,2]
[421108262,1777051863999,-526.88,0.000194,2]
[421108263,1777051864010,-1117.0,0.00019439,2]
[421108264,1777051864020,-150.0,0.00019443,2]
[421108265,1777051864030,-6154.5,0.00019452,2]
[421108266,1777051864039,-654.35381891,0.00019572,14]
[421108267,1777051864049,-500.0,0.00019584,2]
[421108268,1777051864059,-152.0,0.0001967,5]
[421108269,1777051864070,-250.0,0.00019726,2]
[421108270,1777051864081,-250.0,0.00019726,2]
[421108271,1777051864091,-210.03,0.00019784,2]
[421108272,1777051864101,-210.03,0.00019784,2]
[421108273,1777051864111,-210.03,0.00019784,2]
[421108274,1777051864121,-210.03,0.00019784,2]
[421108275,1777051864131,-210.03,0.00019784,2]
[421108276,1777051864141,-210.03,0.00019784,2]
[421108277,1777051864152,-210.03,0.00019786,2]
[421108278,1777051864162,-210.03,0.00019786,2]
[421108279,1777051864172,-210.03,0.00019786,2]
[421108280,1777051864181,-210.03,0.00019786,2]
[421108281,1777051864191,-210.03,0.00019786,2]
[421108282,1777051864202,-210.03,0.00019786,2]
[421108283,1777051864212,-210.03,0.00019786,2]
[421108284,1777051864222,-210.01,0.00019788,2]
[421108285,1777051864232,-210.03,0.00019788,2]
[421108286,1777051864242,-210.03,0.00019788,2]
[421108287,1777051864252,-210.03,0.00019788,2]
[421108288,1777051864609,-210.03,0.00019788,2]
[421108289,1777051864621,-210.03,0.00019788,2]
[421108290,1777051864632,-210.03,0.00019788,2]
[421108291,1777051864642,-668.65185757,0.00019852,2]
[421108292,1777051864653,-804.17102365,0.00019852,2]
[421108293,1777051864663,-654.35381891,0.00019913,14]
[421108294,1777051864672,-158.0,0.00019941,3]
[421108295,1777051864682,-920.0,0.0002,2]
[421108296,1777051864692,-2479.25,0.0002,2]
[421108297,1777051864703,-212.03,0.0002,2]
[421108298,1777051864713,-931.0,0.0002,2]
[421108299,1777051864723,-1548.169102,0.0002,2]
[421108300,1777051864732,-178.14280911,0.0002,2]
[421108301,1777051864741,-1484.52334938,0.0002,5]
[421108302,1777051864751,-180.0,0.0002,2]
[421108303,1777051864760,-1306.99811707,0.0002,2]
[421108304,1777051864770,-302.17811028,0.0002,10]
[421108305,1777051865792,-202.54804881,0.0002,10]
[421108306,1777051865802,-535.8360828,0.0002,7]
[421108307,1777051865812,-200.0,0.0002,2]
[421108308,1777051865822,-1047.56841878,0.0002,2]
[421108316,1777052530611,1000.5,0.000165,120]
[421108323,1777053032229,-150.0,7.792e-05,2]
[421108324,1777053032239,-150.0,7.792e-05,2]
[421108325,1777053032248,-150.0,7.792e-05,2]
[421108326,1777053032257,-250.0,7.854e-05,2]
[421108327,1777053032266,-150.0,7.915e-05,2]
[421108328,1777053032275,-150.0,7.915e-05,2]
[421108329,1777053032285,-150.0,8.039e-05,2]
[421108330,1777053032294,-150.0,8.039e-05,2]
[421108331,1777053032303,-150.0,8.163e-05,2]
[421108332,1777053032312,-150.0,8.163e-05,2]
[421108333,1777053032321,-150.0,8.286e-05,2]
[421108334,1777053032330,-150.0,8.286e-05,2]
[421108335,1777053032340,-150.0,8.41e-05,2]
[421108336,1777053032349,-150.0,8.41e-05,2]
[421108337,1777053032359,-300.0,8.485e-05,2]
[421108338,1777053032368,-1200.0,8.485e-05,2]
[421108339,1777053032377,-1170.41132724,8.486e-05,2]
[421108430,1777053040617,-29.58867276,8.486e-05,2]
[421108431,1777053040626,-1941.68632724,8.487e-05,2]
[421108449,1777053047117,-775.97575,8.487e-05,2]
[421108450,1777053047129,-1234.37092276,8.487e-05,2]
[421108452,1777053047138,-304.293,8.487e-05,2]
[421108453,1777053047148,-150.0,8.534e-05,2]
[421108454,1777053047158,-150.0,8.534e-05,2]
[421108455,1777053047167,-4383.7738,8.559e-05,2]
[421108456,1777053047176,-5347.56227724,8.559e-05,2]
[421108458,1777053047192,-19743.82672229,8.559e-05,2]
[421108459,1777053047203,-604.59375567,8.559e-05,2]
[421108460,1777053357457,152.0,8.972e-05,30]
[421108510,1777054150154,-150.0,7.693e-05,2]
[421108511,1777054150181,-110.18753892,7.693e-05,2]
[421108517,1777054231447,-39.81246108,7.693e-05,2]
[421108518,1777054231456,-152.1122056,7.693e-05,2]
[421108519,1777054231466,-150.0,7.693e-05,2]
[421108520,1777054231475,-286.49130564,7.693e-05,2]
[421108521,1777054231485,-150.0,7.693e-05,2]
[421108522,1777054231494,-150.0,7.693e-05,2]
[421108523,1777054231503,-226.31,7.7e-05,2]
[421108524,1777054231513,-250.0,7.962e-05,2]
[421108525,1777054231523,-300.0,8.23e-05,2]
[421108526,1777054231532,-1531.57,8.231e-05,2]
[421108527,1777054231542,-150.0,8.309e-05,2]
[421108528,1777054231551,-150.0,8.309e-05,2]
[421108529,1777054231565,-1200.0,8.386e-05,2]
[421108530,1777054231575,-414.80275831,8.387e-05,2]
[421108531,1777054231585,-300.0,8.387e-05,2]
[421108532,1777054231595,-3814.434,8.388e-05,2]
[421108533,1777054231604,-287.426,8.388e-05,2]
[421108534,1777054231614,-765.78,8.401e-05,2]
[421108535,1777054231623,-414.80275831,8.425e-05,2]
[421108536,1777054231632,-150.0,8.457e-05,2]
[421108537,1777054231642,-500.0,8.458e-05,2]
[421108538,1777054231651,-250.0,8.458e-05,2]
[421108539,1777054231661,-500.0,8.458e-05,2]
[421108540,1777054231675,-311.74777905,8.458e-05,2]
[421108541,1777054231684,-500.0,8.458e-05,2]
[421108542,1777054231694,-541.38724768,8.458e-05,2]
[421108543,1777054231703,-500.0,8.458e-05,2]
[421108544,1777054231712,-500.0,8.458e-05,2]
[421108545,1777054231722,-500.0,8.458e-05,2]
[421108546,1777054231731,-159.06584887,8.458e-05,2]
[421108547,1777054231741,-265.35014151,8.458e-05,2]
[421108548,1777054231750,-500.0,8.458e-05,2]
[421108549,1777054231760,-500.0,8.458e-05,2]
[421108550,1777054231769,-500.0,8.458e-05,2]
[421108552,1777054231779,-500.0,8.458e-05,2]
[421108554,1777054231788,-500.0,8.458e-05,2]
[421108556,1777054231798,-500.0,8.458e-05,2]
[421108558,1777054231807,-500.0,8.458e-05,2]
[421108560,1777054231820,-500.0,8.458e-05,2]
[421108562,1777054231829,-500.0,8.458e-05,2]
[421108563,1777054231838,-500.0,8.458e-05,2]
[421108565,1777054231848,-500.0,8.458e-05,2]
[421108567,1777054231857,-500.0,8.458e-05,2]
[421108569,1777054231866,-500.0,8.458e-05,2]
[421108571,1777054231875,-500.0,8.458e-05,2]
[421108573,1777054231885,-603.04167569,8.458e-05,2]
[421108575,1777054231894,-500.0,8.458e-05,2]
[421108577,1777054231903,-500.0,8.458e-05,2]
[421108579,1777054231913,-500.0,8.458e-05,2]
[421108581,1777054231922,-500.0,8.458e-05,2]
[421108582,1777054231931,-500.0,8.458e-05,2]
[421108584,1777054231941,-500.0,8.458e-05,2]
[421108586,1777054231950,-500.0,8.458e-05,2]
[421108588,1777054231960,-500.0,8.458e-05,2]
[421108589,1777054231973,-500.0,8.458e-05,2]
[421108590,1777054231983,-500.0,8.458e-05,2]
[421108591,1777054231994,-500.0,8.458e-05,2]
[421108592,1777054232004,-500.0,8.458e-05,2]
[421108593,1777054232014,-500.0,8.458e-05,2]
[421108594,1777054232023,-500.0,8.458e-05,2]
[421108595,1777054232034,-500.0,8.458e-05,2]
[421108596,1777054232043,-500.0,8.458e-05,2]
[421108597,1777054232053,-500.0,8.458e-05,2]
[421108598,1777054232063,-500.0,8.458e-05,2]
[421108599,1777054232072,-500.0,8.458e-05,2]
[421108600,1777054232082,-500.0,8.458e-05,2]
[421108601,1777054232092,-500.0,8.458e-05,2]
[421108602,1777054232101,-500.0,8.458e-05,2]
[421108603,1777054232111,-500.0,8.458e-05,2]
[421108604,1777054232120,-500.0,8.458e-05,2]
[421108605,1777054232130,-500.0,8.458e-05,2]
[421108606,1777054232140,-500.0,8.458e-05,2]
[421108607,1777054232149,-326.09631732,8.458e-05,2]
[421108608,1777054232159,-743.18636771,8.458e-05,2]
[421108609,1777054232168,-743.18636771,8.458e-05,2]
[421108610,1777054232178,-743.18636771,8.458e-05,2]
[421108611,1777054232188,-743.18636771,8.458e-05,2]
[421108612,1777054232201,-743.18636771,8.458e-05,2]
[421108613,1777054232211,-743.18636771,8.458e-05,2]
[421108614,1777054232220,-743.18636771,8.458e-05,2]
[421108615,1777054232230,-743.18636771,8.458e-05,2]
[421108616,1777054232239,-743.18636771,8.458e-05,2]
[421108617,1777054232249,-743.18636771,8.458e-05,2]
[421108618,1777054232258,-743.18636771,8.458e-05,2]
[421108650,1777054232701,-743.18636771,8.458e-05,2]
[421108651,1777054232728,-743.18636771,8.458e-05,2]
[421108652,1777054232737,-743.18636771,8.458e-05,2]
[421108653,1777054232747,-743.18636771,8.458e-05,2]
[421108654,1777054232756,-743.18636771,8.458e-05,2]
[421108655,1777054232765,-743.18636771,8.458e-05,2]
[421108656,1777054232775,-743.18636771,8.458e-05,2]
[421108657,1777054232785,-743.18636771,8.458e-05,2]
[421108658,1777054232795,-743.18636771,8.458e-05,2]
[421108659,1777054232803,-743.18636771,8.458e-05,2]
[421108660,1777054232813,-743.18636771,8.458e-05,2]
[421108661,1777054232823,-743.18636771,8.458e-05,2]
[421108662,1777054232832,-743.18636771,8.458e-05,2]
[421108663,1777054232841,-743.18636771,8.458e-05,2]
[421108664,1777054232851,-743.18636771,8.458e-05,2]
[421108665,1777054232860,-743.18636771,8.458e-05,2]
[421108666,1777054232869,-743.18636771,8.458e-05,2]
[421108667,1777054232879,-743.18636771,8.458e-05,2]
[421108668,1777054232887,-743.18636771,8.458e-05,2]
[421108669,1777054232897,-743.18636771,8.458e-05,2]
[421108670,1777054232907,-743.18636771,8.458e-05,2]
[421108671,1777054232916,-743.18636771,8.458e-05,2]
[421108672,1777054232928,-743.18636771,8.458e-05,2]
[421108673,1777054232938,-743.18636771,8.458e-05,2]
[421108674,1777054232948,-743.18636771,8.458e-05,2]
[421108675,1777054232957,-743.18636771,8.458e-05,2]
[421108676,1777054232969,-743.18636771,8.458e-05,2]
[421108677,1777054232979,-743.18636771,8.458e-05,2]
[421108678,1777054232990,-743.18636771,8.458e-05,2]
[421108679,1777054233000,-743.1863677,8.458e-05,2]
[421108680,1777054233010,-743.1863677,8.458e-05,2]
[421108681,1777054233019,-743.1863677,8.458e-05,2]
[421108682,1777054233030,-743.1863677,8.458e-05,2]
[421108683,1777054233039,-743.1863677,8.458e-05,2]
[421108684,1777054233049,-743.1863677,8.458e-05,2]
[421108685,1777054233058,-743.1863677,8.458e-05,2]
[421108686,1777054233067,-743.18636767,8.458e-05,2]
[421108687,1777054233077,-5233.15541198,8.459e-05,2]
[421108688,1777054233091,-10703.24916674,8.459e-05,2]
[421108689,1777054233102,-500.0,8.459e-05,2]
[421108690,1777054233129,-308.29206342,8.459e-05,2]
[421108698,1777054237921,-1128.37587025,8.459e-05,2]
[421108699,1777054237935,-39814.02868931,8.459e-05,2]
[421108700,1777054237991,-5420.14792206,8.459e-05,2]
[421108701,1777054238006,-904.1372,8.459e-05,2]
[421108702,1777054238031,-749217.38459866,8.459e-05,2]
[421108710,1777054240026,-3636.10987758,8.459e-05,2]
[421108711,1777054240037,-5688.68375076,8.459e-05,2]
[421108712,1777054240080,-7997.52238149,8.459e-05,2]
[421108713,1777054240091,-403.46388559,8.459e-05,2]
[421108714,1777054240134,-7186.81618216,8.459e-05,2]
[421108715,1777054240144,-260.0,8.459e-05,2]
[421108716,1777054240153,-414.80275831,8.462e-05,2]
[421108717,1777054240163,-250.0,8.462e-05,2]
[421108718,1777054240172,-250.0,8.462e-05,2]
[421108719,1777054240181,-344.17,8.516e-05,2]
[421108720,1777054240191,-150.0,8.548e-05,2]
[421108721,1777054240200,-185.13286309,8.548e-05,2]
[421108722,1777054240209,-265.29386796,8.548e-05,2]
[421108723,1777054240219,-1000.0,8.558e-05,2]
[421108724,1777054240228,-24945.35383815,8.558e-05,2]
[421108725,1777054240238,-255.25,8.571e-05,2]
[421108726,1777054240247,-162.93748385,8.673e-05,2]
[421108727,1777054240256,-500.18586643,8.673e-05,2]
[421108728,1777054240266,-1125381.35885799,8.7e-05,2]
[421108729,1777054240275,-214.49935929,8.759e-05,4]
[421108730,1777054240285,-153.83540176,8.76e-05,2]
[421108731,1777054240295,-152.0,8.949e-05,7]
[421108732,1777054240304,-152.0,8.96e-05,7]
[421108733,1777054240314,-152.0,8.969e-05,7]
[421108734,1777054240324,-1200.0,9.225e-05,2]
[421108735,1777054240333,-5000.0,9.226e-05,2]
[421108736,1777054240343,-255.0,9.303e-05,2]
[421108737,1777054240352,-118035.53784113,9.89e-05,3]
[421108738,1777054240368,-670.26506568,9.89e-05,3]
[421108739,1777054240380,-1639.89255166,9.89e-05,3]
[421108740,1777054240392,-526.82996744,9.89e-05,3]
[421108741,1777054240420,-402.38647559,9.89e-05,3]
[421108774,1777054242562,-1027.23724345,9.89e-05,3]
[421108777,1777054242618,-1579.54368736,9.89e-05,3]
[421108778,1777054242672,-98160.07209657,9.89e-05,3]
[421108779,1777054242725,-628.55417285,9.89e-05,3]
[421108788,1777054245980,-536.18546117,9.89e-05,3]
[421108789,1777054246039,-3176.73699666,9.89e-05,3]
[421108790,1777054246051,-4965.39420555,9.89e-05,3]
[421108791,1777054246062,-7146.18628486,9.89e-05,3]
[421108792,1777054246100,-3614.79534422,9.89e-05,3]
[421108793,1777054246117,-2809.05666219,9.89e-05,3]
[421108794,1777054246129,-2246.78252138,9.89e-05,3]
[421108795,1777054246141,-32609.0966214,9.89e-05,3]
[421108796,1777054246151,-50223.83395844,0.0001,2]
[421108797,1777054246161,-221.55162447,0.0001,2]
[421108798,1777054246171,-151.0,0.0001,2]
[421108799,1777054246180,-151.0,0.0001,2]
[421108800,1777054246190,-151.0,0.0001,2]
[421108801,1777054246200,-151.0,0.0001,2]
[421108802,1777054246210,-151.0,0.0001,2]
[421108803,1777054246221,-151.0,0.0001,2]
[421108804,1777054246231,-151.0,0.0001,2]
[421108805,1777054246240,-151.0,0.0001,2]
[421108806,1777054246251,-151.0,0.0001,2]
[421108807,1777054246261,-151.0,0.0001,2]
[421108808,1777054246270,-151.0,0.0001,2]
[421108810,1777054246280,-242.11606108,0.0001,2]
[421108811,1777054246290,-1310.23750662,0.0001,2]
[421108812,1777054246300,-6859.92904531,0.0001,2]
[421108813,1777054246310,-3160.13468618,0.0001,2]
[421108814,1777054246320,-4407.78723847,0.0001,2]
[421108815,1777054246330,-162.24500663,0.00010126,2]
[421108816,1777054246339,-160.0,0.00010126,2]
[421108817,1777054246349,-2475.0,0.00010346,2]
[421108818,1777054246358,-3781.0,0.00010346,2]
[421108819,1777054246368,-150.0,0.00010386,2]
[421108820,1777054246378,-6032.0,0.00010423,2]
[421108821,1777054246388,-217.0,0.00010481,2]
[421108822,1777054246397,-150.0,0.00010481,2]
[421108823,1777054246407,-250.0,0.00010481,2]
[421108824,1777054246419,-150.43,0.00010481,2]
[421108825,1777054246428,-184.164,0.00010481,2]
[421108826,1777054246438,-150.054,0.00010481,2]
[421108827,1777054246447,-150.0,0.00010481,2]
[421108828,1777054246457,-3531.0,0.00010481,2]
[421108829,1777054246466,-623.0,0.00010481,2]
[421108830,1777054246480,-1048.0,0.00010481,2]
[421108831,1777054246491,-1349.0,0.00010481,2]
[421108832,1777054246501,-278.258,0.00010481,2]
[421108833,1777054246511,-927.0,0.00010481,2]
[421108835,1777054246521,-1219.0,0.00010481,2]
[421108836,1777054246531,-241.35410696,0.0001065,2]
[421108837,1777054246541,-4734.19713034,0.0001065,2]
[421108838,1777054246551,-20932.61426344,0.0001065,2]
[421108839,1777054246561,-183.21,0.000107,2]
[421108840,1777054246571,-23102.96089027,0.000107,2]
[421108841,1777054246617,-98167.06086379,0.000107,2]
[421108842,1777054246629,-7886.93640369,0.000107,2]
[421108843,1777054246642,-163419.86322492,0.000107,2]
[421108844,1777054246660,-387.93218086,0.000107,2]
[421108845,1777054246672,-2273.64543204,0.000107,2]
[421108846,1777054246689,-961.05676293,0.000107,2]
[421108847,1777055345144,-298.97075563,7.493e-05,2]
[421108848,1777055345167,-302.30834644,7.518e-05,2]
[421108849,1777055345190,-2538.37758147,7.518e-05,2]
[421108850,1777055345214,-300.0,7.52e-05,2]
[421108851,1777055345239,-150.0,7.521e-05,2]
[421108852,1777055345263,-20.99842478,7.521e-05,2]
[421108853,1777055431681,-129.00157522,7.521e-05,2]
[421108854,1777055431691,-150.00000001,7.521e-05,2]
[421108855,1777055431701,-264.86713691,7.521e-05,2]
[421108856,1777055431711,-150.0,7.521e-05,2]
[421108857,1777055431720,-150.0,7.521e-05,2]
[421108858,1777055431730,-500.0,7.593e-05,2]
[421108859,1777055431739,-150.0,7.613e-05,2]
[421108860,1777055431749,-150.0,7.706e-05,2]
[421108861,1777055431758,-150.0,7.799e-05,2]
[421108862,1777055431768,-150.0,7.892e-05,2]
[421108863,1777055431779,-150.0,7.985e-05,2]
[421108864,1777055431789,-150.0,8.078e-05,2]
[421108865,1777055431799,-150.0,8.17e-05,2]
[421108866,1777055431808,-372.667373,8.178e-05,2]
[421108867,1777055431817,-1200.0,8.241e-05,2]
[421108868,1777055431827,-750.5765424,8.242e-05,2]
[421108869,1777055431838,-250.0,8.242e-05,2]